[Event "*** Titled Tuesday Blitz"]
[Site "Chess.com"]
[Date "2021.02.02"]
[Round "3"]
[White "Flawless_Fighter"]
[Black "Balla_Tamas"]
[Result "1/2-1/2"]
[WhiteElo "2686"]
[BlackElo "2500"]
[TimeControl "180+1"]
[EndTime "10:31:30 PST"]
[Termination "Game drawn by repetition"]

1. d4 {[%clk 0:03:00.9]} 1... f5 {[%clk 0:02:54.9]} 2. Nf3 {[%clk 0:02:58.2]}
2... Nf6 {[%clk 0:02:54.1]} 3. g3 {[%clk 0:02:57]} 3... b6 {[%clk 0:02:53.1]} 4.
c4 {[%clk 0:02:56.7]} 4... e6 {[%clk 0:02:51.4]} 5. Bg2 {[%clk 0:02:56.5]} 5...
Bb4+ {[%clk 0:02:47.4]} 6. Bd2 {[%clk 0:02:56]} 6... Bxd2+ {[%clk 0:02:46.5]} 7.
Nfxd2 {[%clk 0:02:55.6]} 7... c6 {[%clk 0:02:45.3]} 8. Nc3 {[%clk 0:02:48.7]}
8... d5 {[%clk 0:02:41.2]} 9. O-O {[%clk 0:02:46.1]} 9... O-O {[%clk 0:02:40.5]}
10. e3 {[%clk 0:02:45]} 10... Nbd7 {[%clk 0:02:39.9]} 11. b4 {[%clk 0:02:44.5]}
11... Bb7 {[%clk 0:02:38]} 12. a4 {[%clk 0:02:43]} 12... Qe7 {[%clk 0:02:37]}
13. c5 {[%clk 0:02:42.6]} 13... e5 {[%clk 0:02:33]} 14. Nb3 {[%clk 0:02:33.6]}
14... a5 {[%clk 0:02:28.2]} 15. b5 {[%clk 0:02:13.1]} 15... bxc5 {[%clk
0:02:08.4]} 16. dxc5 {[%clk 0:02:11.7]} 16... e4 {[%clk 0:00:38.3]} 17. Qd4
{[%clk 0:01:53.6]} 17... g6 {[%clk 0:00:37.6]} 18. Rac1 {[%clk 0:01:51.1]} 18...
Rfc8 {[%clk 0:00:36.7]} 19. Ne2 {[%clk 0:01:43.6]} 19... Ng4 {[%clk 0:00:32.8]}
20. Nf4 {[%clk 0:01:40.6]} 20... Ndf6 {[%clk 0:00:32.5]} 21. Rfd1 {[%clk
0:01:36.1]} 21... Ne5 {[%clk 0:00:32.2]} 22. h4 {[%clk 0:01:27.9]} 22... h6
{[%clk 0:00:30.9]} 23. Qd2 {[%clk 0:01:06.5]} 23... g5 {[%clk 0:00:30.6]} 24.
hxg5 {[%clk 0:01:05.6]} 24... hxg5 {[%clk 0:00:31.3]} 25. Ne2 {[%clk 0:01:05.7]}
25... Nd3 {[%clk 0:00:30]} 26. Nxa5 {[%clk 0:00:53.2]} 26... Ng4 {[%clk
0:00:23.5]} 27. Nd4 {[%clk 0:00:46.8]} 27... Ngxf2 {[%clk 0:00:19.7]} 28. Nxf5
{[%clk 0:00:46.2]} 28... Qe5 {[%clk 0:00:19.7]} 29. Nxb7 {[%clk 0:00:38.8]}
29... Qxf5 {[%clk 0:00:19.7]} 30. Nd6 {[%clk 0:00:39.5]} 30... Qh7 {[%clk
0:00:19.8]} 31. Nxc8 {[%clk 0:00:36.4]} 31... Rxc8 {[%clk 0:00:19.9]} 32. Rf1
{[%clk 0:00:37.1]} 32... Rf8 {[%clk 0:00:19.6]} 33. b6 {[%clk 0:00:31.8]} 33...
Ng4 {[%clk 0:00:18.9]} 34. Rxf8+ {[%clk 0:00:30.5]} 34... Kxf8 {[%clk
0:00:19.4]} 35. a5 {[%clk 0:00:23.6]} 35... Qh2+ {[%clk 0:00:18.5]} 36. Kf1
{[%clk 0:00:23.8]} 36... Qxg3 {[%clk 0:00:18.4]} 37. b7 {[%clk 0:00:20.7]} 37...
Nxe3+ {[%clk 0:00:18.3]} 38. Qxe3 {[%clk 0:00:20.7]} 38... Qxe3 {[%clk
0:00:19.1]} 39. b8=Q+ {[%clk 0:00:21.2]} 39... Kg7 {[%clk 0:00:19.3]} 40. Qc7+
{[%clk 0:00:20]} 40... Kg8 {[%clk 0:00:19.1]} 41. Qd8+ {[%clk 0:00:19.6]} 41...
Kg7 {[%clk 0:00:18.1]} 42. Qe7+ {[%clk 0:00:19.9]} 42... Kg8 {[%clk 0:00:18.3]}
43. Qe6+ {[%clk 0:00:18.6]} 43... Kg7 {[%clk 0:00:18.3]} 44. Qe7+ {[%clk
0:00:17.2]} 44... Kg8 {[%clk 0:00:18.6]} 45. Qd8+ {[%clk 0:00:17.5]} 45... Kg7
{[%clk 0:00:18.7]} 46. Qd7+ {[%clk 0:00:16]} 46... Kg8 {[%clk 0:00:18.9]} 47.
Qe6+ {[%clk 0:00:15.6]} 47... Kg7 {[%clk 0:00:18.9]} 48. Qe7+ {[%clk 0:00:15.2]}
1/2-1/2

[Event "*** Titled Tuesday Blitz"]
[Site "Chess.com"]
[Date "2021.02.02"]
[Round "3"]
[White "Grammnik"]
[Black "juancruzarias"]
[Result "0-1"]
[WhiteElo "2390"]
[BlackElo "2583"]
[TimeControl "180+1"]
[EndTime "10:31:30 PST"]
[Termination "juancruzarias won by resignation"]

1. d4 {[%clk 0:03:00.9]} 1... Nf6 {[%clk 0:02:59.2]} 2. Nf3 {[%clk 0:03:00.8]}
2... e6 {[%clk 0:02:59.6]} 3. c4 {[%clk 0:03:00.9]} 3... c5 {[%clk 0:03:00]} 4.
Nc3 {[%clk 0:03:01.4]} 4... cxd4 {[%clk 0:02:59.2]} 5. Nxd4 {[%clk 0:03:02.3]}
5... Nc6 {[%clk 0:02:59.8]} 6. g3 {[%clk 0:03:01.9]} 6... Bc5 {[%clk 0:02:58.9]}
7. Nxc6 {[%clk 0:03:01.5]} 7... bxc6 {[%clk 0:02:58.8]} 8. Bg2 {[%clk
0:03:01.6]} 8... O-O {[%clk 0:02:58.8]} 9. O-O {[%clk 0:03:01.4]} 9... d5 {[%clk
0:02:59.4]} 10. Na4 {[%clk 0:02:58.7]} 10... Be7 {[%clk 0:02:57]} 11. Qc2 {[%clk
0:02:58.3]} 11... e5 {[%clk 0:02:50.9]} 12. Rd1 {[%clk 0:02:56.1]} 12... Be6
{[%clk 0:02:49.5]} 13. Bg5 {[%clk 0:02:49.8]} 13... Qa5 {[%clk 0:02:32.1]} 14.
Bd2 {[%clk 0:02:29.1]} 14... Qa6 {[%clk 0:02:27.1]} 15. c5 {[%clk 0:02:18]}
15... Rfe8 {[%clk 0:02:16.6]} 16. Bf1 {[%clk 0:02:12.6]} 16... Rab8 {[%clk
0:02:09.8]} 17. e4 {[%clk 0:02:08.2]} 17... Qc8 {[%clk 0:02:07.3]} 18. exd5
{[%clk 0:02:07.9]} 18... cxd5 {[%clk 0:02:07.4]} 19. b4 {[%clk 0:02:05]} 19...
Bh3 {[%clk 0:02:03.2]} 20. Qd3 {[%clk 0:01:50]} 20... e4 {[%clk 0:02:00.5]} 21.
Qa6 {[%clk 0:01:46.2]} 21... Qf5 {[%clk 0:01:54.7]} 22. Bc3 {[%clk 0:01:37.2]}
22... e3 {[%clk 0:01:18.6]} 23. fxe3 {[%clk 0:01:30.3]} 23... Ne4 {[%clk
0:01:13.7]} 24. Qe2 {[%clk 0:01:06.5]} 24... Bg4 {[%clk 0:01:11.3]} 25. Qg2
{[%clk 0:01:00]} 25... Nxc3 {[%clk 0:00:35.3]} 26. Nxc3 {[%clk 0:00:57.3]} 26...
Bxd1 {[%clk 0:00:23.8]} 27. Rxd1 {[%clk 0:00:58.2]} 27... Rxb4 {[%clk
0:00:24.3]} 28. Nxd5 {[%clk 0:00:57.4]} 28... Rbb8 {[%clk 0:00:21.9]} 29. c6
{[%clk 0:00:48.5]} 29... Bd6 {[%clk 0:00:17.3]} 30. Bd3 {[%clk 0:00:39.2]} 30...
Qe5 {[%clk 0:00:16.8]} 31. Qh3 {[%clk 0:00:39.2]} 31... g6 {[%clk 0:00:16.9]}
32. Bc4 {[%clk 0:00:34]} 32... Bc5 {[%clk 0:00:15.6]} 33. Re1 {[%clk 0:00:24.3]}
33... Rbc8 {[%clk 0:00:15.4]} 34. c7 {[%clk 0:00:18]} 34... Rxc7 {[%clk
0:00:12.8]} 35. Nxc7 {[%clk 0:00:17.6]} 35... Bxe3+ {[%clk 0:00:12.5]} 36. Kh1
{[%clk 0:00:17.2]} 36... Qxc7 {[%clk 0:00:11.2]} 37. Bf1 {[%clk 0:00:16]} 37...
Qe7 {[%clk 0:00:10.7]} 38. Bg2 {[%clk 0:00:15.9]} 38... Qg5 {[%clk 0:00:11]} 39.
g4 {[%clk 0:00:14.4]} 39... Re5 {[%clk 0:00:11.4]} 40. Qf3 {[%clk 0:00:14.2]}
40... Kg7 {[%clk 0:00:11.9]} 41. h3 {[%clk 0:00:14.5]} 41... Bf4 {[%clk
0:00:11.5]} 42. Rxe5 {[%clk 0:00:13.8]} 42... Qxe5 {[%clk 0:00:12.4]} 43. Qe2
{[%clk 0:00:13.9]} 43... Qxe2 {[%clk 0:00:12.3]} 0-1

[Event "*** Titled Tuesday Blitz"]
[Site "Chess.com"]
[Date "2021.02.02"]
[Round "3"]
[White "Logman74"]
[Black "Jumbo"]
[Result "0-1"]
[WhiteElo "2458"]
[BlackElo "2814"]
[TimeControl "180+1"]
[EndTime "10:31:31 PST"]
[Termination "Jumbo won on time"]

1. e4 {[%clk 0:03:00.9]} 1... g6 {[%clk 0:02:58.3]} 2. d4 {[%clk 0:02:59.5]}
2... Bg7 {[%clk 0:02:58.2]} 3. Nc3 {[%clk 0:03:00.1]} 3... d6 {[%clk 0:02:54.7]}
4. f4 {[%clk 0:02:59]} 4... Nf6 {[%clk 0:02:52.5]} 5. Nf3 {[%clk 0:02:59.1]}
5... c5 {[%clk 0:02:51.1]} 6. dxc5 {[%clk 0:02:57.8]} 6... Qa5 {[%clk
0:02:51.3]} 7. Bd3 {[%clk 0:02:58.3]} 7... Qxc5 {[%clk 0:02:50.4]} 8. Qe2 {[%clk
0:02:58.8]} 8... Nc6 {[%clk 0:02:49.7]} 9. Be3 {[%clk 0:02:58.7]} 9... Qa5
{[%clk 0:02:49.8]} 10. O-O {[%clk 0:02:57.8]} 10... Bg4 {[%clk 0:02:49.7]} 11.
h3 {[%clk 0:02:57.6]} 11... Bxf3 {[%clk 0:02:49.4]} 12. Qxf3 {[%clk 0:02:58.2]}
12... Nd7 {[%clk 0:02:45.4]} 13. Bd2 {[%clk 0:02:44.1]} 13... O-O {[%clk
0:02:18.8]} 14. a3 {[%clk 0:02:41.6]} 14... Rac8 {[%clk 0:02:09.3]} 15. Kh1
{[%clk 0:02:39.2]} 15... a6 {[%clk 0:01:51.8]} 16. Rae1 {[%clk 0:02:27.9]} 16...
e6 {[%clk 0:01:05.7]} 17. Qg3 {[%clk 0:02:20.5]} 17... Qd8 {[%clk 0:00:58.9]}
18. f5 {[%clk 0:02:16.4]} 18... Nce5 {[%clk 0:00:57.9]} 19. Bg5 {[%clk
0:02:12.4]} 19... Bf6 {[%clk 0:00:43.5]} 20. Bxf6 {[%clk 0:01:50.6]} 20... Nxf6
{[%clk 0:00:44.4]} 21. Qh4 {[%clk 0:01:49.3]} 21... Kg7 {[%clk 0:00:43]} 22. g4
{[%clk 0:01:45.4]} 22... h6 {[%clk 0:00:38.7]} 23. g5 {[%clk 0:01:40.3]} 23...
hxg5 {[%clk 0:00:38]} 24. Qxg5 {[%clk 0:01:39.4]} 24... Rh8 {[%clk 0:00:37.7]}
25. Re3 {[%clk 0:01:32.6]} 25... Rh5 {[%clk 0:00:35.2]} 26. Qg2 {[%clk
0:01:24.2]} 26... Qe7 {[%clk 0:00:35]} 27. Be2 {[%clk 0:01:16]} 27... Rh4 {[%clk
0:00:33.2]} 28. Rg3 {[%clk 0:01:13.5]} 28... Rch8 {[%clk 0:00:32.9]} 29. Rg1
{[%clk 0:01:08.8]} 29... R8h6 {[%clk 0:00:31.5]} 30. Nd1 {[%clk 0:00:54.7]}
30... Nxe4 {[%clk 0:00:25.6]} 31. Re3 {[%clk 0:00:44]} 31... exf5 {[%clk
0:00:25.4]} 32. Bd3 {[%clk 0:00:40.4]} 32... d5 {[%clk 0:00:23.7]} 33. Nc3
{[%clk 0:00:38.5]} 33... Qd6 {[%clk 0:00:20.1]} 34. Ne2 {[%clk 0:00:31.3]} 34...
Ng4 {[%clk 0:00:19.2]} 35. Rf3 {[%clk 0:00:22.6]} 35... Nef2+ {[%clk 0:00:18.5]}
36. Rxf2 {[%clk 0:00:21.8]} 36... Rxh3+ {[%clk 0:00:18.6]} 37. Qxh3 {[%clk
0:00:21]} 37... Rxh3+ {[%clk 0:00:19.1]} 38. Kg2 {[%clk 0:00:21.7]} 38... Qh2+
{[%clk 0:00:19.4]} 0-1

[Event "*** Titled Tuesday Blitz"]
[Site "Chess.com"]
[Date "2021.02.02"]
[Round "3"]
[White "andrzej"]
[Black "Chess2Hawks"]
[Result "1-0"]
[WhiteElo "2289"]
[BlackElo "1814"]
[TimeControl "180+1"]
[EndTime "10:31:31 PST"]
[Termination "andrzej won on time"]

1. e4 {[%clk 0:03:00.9]} 1... c5 {[%clk 0:03:00.1]} 2. Nc3 {[%clk 0:03:01.4]}
2... Nc6 {[%clk 0:02:55.2]} 3. Bb5 {[%clk 0:03:01.8]} 3... Nd4 {[%clk
0:02:50.9]} 4. Nf3 {[%clk 0:03:02.2]} 4... Nxb5 {[%clk 0:02:47]} 5. Nxb5 {[%clk
0:03:03.1]} 5... g6 {[%clk 0:02:41.5]} 6. d4 {[%clk 0:03:02.8]} 6... Bg7 {[%clk
0:02:36.1]} 7. a4 {[%clk 0:02:28.9]} 7... a6 {[%clk 0:02:30.4]} 8. Nc3 {[%clk
0:02:28.9]} 8... cxd4 {[%clk 0:02:26.8]} 9. Nxd4 {[%clk 0:02:29.8]} 9... d6
{[%clk 0:02:11.4]} 10. Be3 {[%clk 0:02:29.6]} 10... Nf6 {[%clk 0:02:07.5]} 11.
f3 {[%clk 0:02:24.1]} 11... O-O {[%clk 0:02:03.1]} 12. O-O {[%clk 0:02:24.1]}
12... d5 {[%clk 0:01:58.2]} 13. exd5 {[%clk 0:02:23.4]} 13... Nxd5 {[%clk
0:01:55.6]} 14. Nxd5 {[%clk 0:02:24.3]} 14... Qxd5 {[%clk 0:01:55.5]} 15. c3
{[%clk 0:02:13.6]} 15... Rd8 {[%clk 0:01:50.4]} 16. Qe2 {[%clk 0:02:11.8]} 16...
e5 {[%clk 0:01:43.4]} 17. Nc2 {[%clk 0:02:11.8]} 17... Bf5 {[%clk 0:01:41.7]}
18. Nb4 {[%clk 0:02:11.8]} 18... Qb3 {[%clk 0:01:31.8]} 19. a5 {[%clk
0:01:55.9]} 19... Rac8 {[%clk 0:01:24.8]} 20. Bb6 {[%clk 0:01:50.6]} 20... Rd6
{[%clk 0:01:16.4]} 21. Rfd1 {[%clk 0:01:45.3]} 21... Rxd1+ {[%clk 0:01:14.2]}
22. Rxd1 {[%clk 0:01:46.2]} 22... Be6 {[%clk 0:01:10.4]} 23. Rd2 {[%clk
0:01:38.8]} 23... h5 {[%clk 0:01:07.2]} 24. Qe4 {[%clk 0:01:35]} 24... Qc4
{[%clk 0:00:51.9]} 25. Qxb7 {[%clk 0:01:25]} 25... h4 {[%clk 0:00:37.4]} 26.
Qxa6 {[%clk 0:01:20.5]} 26... Qf4 {[%clk 0:00:31.5]} 27. Qd3 {[%clk 0:01:03]}
27... Bh6 {[%clk 0:00:22.3]} 28. Rd1 {[%clk 0:00:52.6]} 28... Bc4 {[%clk
0:00:20.2]} 29. Qd7 {[%clk 0:00:49.8]} 29... Rf8 {[%clk 0:00:18.4]} 30. Nd5
{[%clk 0:00:44.9]} 30... Bxd5 {[%clk 0:00:12.9]} 31. Qxd5 {[%clk 0:00:45.8]}
31... h3 {[%clk 0:00:11.2]} 32. g3 {[%clk 0:00:31.1]} 32... Qa4 {[%clk
0:00:10.2]} 33. Bc5 {[%clk 0:00:21.9]} 33... Qc2 {[%clk 0:00:08.9]} 34. Bf2
{[%clk 0:00:19.2]} 34... Be3 {[%clk 0:00:06.9]} 35. Rf1 {[%clk 0:00:14.2]} 35...
Bxf2+ {[%clk 0:00:04.7]} 36. Rxf2 {[%clk 0:00:15.1]} 36... Qc1+ {[%clk
0:00:03.4]} 37. Rf1 {[%clk 0:00:15.6]} 37... Qxb2 {[%clk 0:00:03]} 38. f4 {[%clk
0:00:15.1]} 1-0

[Event "*** Titled Tuesday Blitz"]
[Site "Chess.com"]
[Date "2021.02.02"]
[Round "3"]
[White "Spalir"]
[Black "saraswathii"]
[Result "1-0"]
[WhiteElo "2624"]
[BlackElo "2417"]
[TimeControl "180+1"]
[EndTime "10:31:32 PST"]
[Termination "Spalir won by resignation"]

1. e4 {[%clk 0:03:00.9]} 1... c5 {[%clk 0:02:58.8]} 2. Nf3 {[%clk 0:03:01.4]}
2... e6 {[%clk 0:02:58.3]} 3. d4 {[%clk 0:03:00]} 3... cxd4 {[%clk 0:02:56.9]}
4. Nxd4 {[%clk 0:03:00.9]} 4... Nf6 {[%clk 0:02:55.3]} 5. Nc3 {[%clk 0:02:59.2]}
5... Nc6 {[%clk 0:02:54.7]} 6. Nxc6 {[%clk 0:02:56.8]} 6... bxc6 {[%clk
0:02:53.5]} 7. e5 {[%clk 0:02:56.5]} 7... Nd5 {[%clk 0:02:51.9]} 8. Ne4 {[%clk
0:02:56.9]} 8... f5 {[%clk 0:02:50.6]} 9. exf6 {[%clk 0:02:49.5]} 9... Nxf6
{[%clk 0:02:49.4]} 10. Nd6+ {[%clk 0:02:49.5]} 10... Bxd6 {[%clk 0:02:29.1]} 11.
Qxd6 {[%clk 0:02:50.4]} 11... Qe7 {[%clk 0:02:28.7]} 12. Bf4 {[%clk 0:02:46.3]}
12... Ne4 {[%clk 0:02:26]} 13. Qd4 {[%clk 0:02:37.7]} 13... d5 {[%clk
0:02:24.8]} 14. Bd3 {[%clk 0:02:35.4]} 14... c5 {[%clk 0:02:19.3]} 15. Qe5
{[%clk 0:02:34.8]} 15... Nf6 {[%clk 0:02:14.7]} 16. O-O {[%clk 0:02:32.2]} 16...
O-O {[%clk 0:02:10.5]} 17. Rae1 {[%clk 0:02:21.4]} 17... c4 {[%clk 0:02:01.7]}
18. Be2 {[%clk 0:02:18.7]} 18... Qf7 {[%clk 0:01:53.4]} 19. Be3 {[%clk
0:02:09.6]} 19... Bd7 {[%clk 0:01:39.5]} 20. b3 {[%clk 0:02:04.9]} 20... cxb3
{[%clk 0:01:36.9]} 21. cxb3 {[%clk 0:02:03.6]} 21... a5 {[%clk 0:01:35.2]} 22.
Rc1 {[%clk 0:02:00.3]} 22... a4 {[%clk 0:01:33.8]} 23. b4 {[%clk 0:01:59.9]}
23... Rfc8 {[%clk 0:01:22.1]} 24. a3 {[%clk 0:01:58.2]} 24... Ne4 {[%clk
0:01:18.9]} 25. f3 {[%clk 0:01:54.6]} 25... Nf6 {[%clk 0:01:08.8]} 26. Qd6
{[%clk 0:01:48.3]} 26... Ne8 {[%clk 0:01:03]} 27. Qf4 {[%clk 0:01:46.4]} 27...
Qe7 {[%clk 0:00:57.1]} 28. Bd3 {[%clk 0:01:42.8]} 28... e5 {[%clk 0:00:53]} 29.
Qg5 {[%clk 0:01:35.3]} 29... Qxg5 {[%clk 0:00:38.6]} 30. Bxg5 {[%clk 0:01:36.2]}
30... h6 {[%clk 0:00:37.8]} 31. Bh4 {[%clk 0:01:36.3]} 31... Nf6 {[%clk
0:00:31.5]} 32. Rfe1 {[%clk 0:01:25]} 32... Rxc1 {[%clk 0:00:26]} 33. Rxc1
{[%clk 0:01:25.9]} 33... Rc8 {[%clk 0:00:25.5]} 34. Rxc8+ {[%clk 0:01:23.7]}
34... Bxc8 {[%clk 0:00:26.4]} 35. Bb5 {[%clk 0:01:14.3]} 35... Bd7 {[%clk
0:00:22.9]} 36. Bxf6 {[%clk 0:00:56.2]} 36... Bxb5 {[%clk 0:00:21.6]} 37. Bxe5
{[%clk 0:00:56.8]} 37... g6 {[%clk 0:00:20]} 38. Kf2 {[%clk 0:00:56.8]} 38...
Kf7 {[%clk 0:00:19.6]} 39. Ke3 {[%clk 0:00:57.4]} 39... Ke6 {[%clk 0:00:19.3]}
40. Kd4 {[%clk 0:00:57.9]} 40... Bf1 {[%clk 0:00:18.6]} 41. g3 {[%clk 0:00:58]}
41... Bg2 {[%clk 0:00:19.1]} 42. f4 {[%clk 0:00:58.6]} 42... Bf1 {[%clk
0:00:18.7]} 43. Kc5 {[%clk 0:00:58.4]} 43... Bc4 {[%clk 0:00:18.6]} 44. b5
{[%clk 0:00:58.5]} 44... Kd7 {[%clk 0:00:19]} 45. b6 {[%clk 0:00:56.6]} 45...
Kc8 {[%clk 0:00:19.2]} 46. Kc6 {[%clk 0:00:57.2]} 46... Ba6 {[%clk 0:00:17.5]}
47. Kxd5 {[%clk 0:00:57.6]} 47... Kb7 {[%clk 0:00:17.1]} 48. Bc7 {[%clk
0:00:56.9]} 48... Be2 {[%clk 0:00:15.3]} 49. h3 {[%clk 0:00:53]} 49... h5 {[%clk
0:00:15.2]} 50. Ke5 {[%clk 0:00:52.6]} 50... Bf1 {[%clk 0:00:14.9]} 51. Kf6
{[%clk 0:00:53]} 51... Bxh3 {[%clk 0:00:14.5]} 52. Kxg6 {[%clk 0:00:53.4]} 52...
Bg4 {[%clk 0:00:15.4]} 53. f5 {[%clk 0:00:53.4]} 53... Kc6 {[%clk 0:00:15.5]}
54. f6 {[%clk 0:00:53.6]} 54... Be6 {[%clk 0:00:09.9]} 55. f7 {[%clk 0:00:53.5]}
55... Bxf7+ {[%clk 0:00:09.4]} 56. Kxf7 {[%clk 0:00:54.4]} 56... Kb7 {[%clk
0:00:09.1]} 57. Kg6 {[%clk 0:00:54.5]} 57... Kc6 {[%clk 0:00:08.5]} 58. Kxh5
{[%clk 0:00:54.7]} 58... Kb7 {[%clk 0:00:08.3]} 59. g4 {[%clk 0:00:55.6]} 59...
Kc6 {[%clk 0:00:08.7]} 60. g5 {[%clk 0:00:56.5]} 60... Kb7 {[%clk 0:00:09.6]}
61. g6 {[%clk 0:00:57.4]} 1-0

[Event "*** Titled Tuesday Blitz"]
[Site "Chess.com"]
[Date "2021.02.02"]
[Round "3"]
[White "OlifantCZ"]
[Black "bsnsun"]
[Result "0-1"]
[WhiteElo "2158"]
[BlackElo "2482"]
[TimeControl "180+1"]
[EndTime "10:31:32 PST"]
[Termination "bsnsun won on time"]

1. c4 {[%clk 0:03:00.9]} 1... c5 {[%clk 0:02:58.7]} 2. g3 {[%clk 0:03:00.4]}
2... g6 {[%clk 0:02:59.3]} 3. Bg2 {[%clk 0:03:00.9]} 3... Bg7 {[%clk 0:02:59.9]}
4. Nc3 {[%clk 0:03:01.5]} 4... Nc6 {[%clk 0:03:00.2]} 5. a3 {[%clk 0:03:00.8]}
5... d6 {[%clk 0:02:59.6]} 6. Rb1 {[%clk 0:03:00.9]} 6... a5 {[%clk 0:02:58.8]}
7. Nf3 {[%clk 0:02:59.4]} 7... e5 {[%clk 0:02:57.8]} 8. O-O {[%clk 0:02:59.9]}
8... Nge7 {[%clk 0:02:57.7]} 9. Ne1 {[%clk 0:03:00.2]} 9... Be6 {[%clk
0:02:53.6]} 10. Nc2 {[%clk 0:02:59.9]} 10... Bxc4 {[%clk 0:02:51.5]} 11. b4
{[%clk 0:02:53.9]} 11... axb4 {[%clk 0:02:39.5]} 12. axb4 {[%clk 0:02:53.7]}
12... cxb4 {[%clk 0:02:06.4]} 13. Nxb4 {[%clk 0:02:52.5]} 13... O-O {[%clk
0:02:06.7]} 14. Ncd5 {[%clk 0:02:24.1]} 14... Nd4 {[%clk 0:01:57.6]} 15. d3
{[%clk 0:02:18.1]} 15... Nxd5 {[%clk 0:01:55.1]} 16. Nxd5 {[%clk 0:02:15.5]}
16... Ba6 {[%clk 0:01:55.1]} 17. Ba3 {[%clk 0:02:05]} 17... Rc8 {[%clk
0:01:37.1]} 18. Rb2 {[%clk 0:01:48.9]} 18... b5 {[%clk 0:01:35.3]} 19. e3 {[%clk
0:01:45.8]} 19... Ne6 {[%clk 0:01:33.5]} 20. Qa1 {[%clk 0:01:30.9]} 20... Kh8
{[%clk 0:01:23.9]} 21. Bb4 {[%clk 0:01:16]} 21... Bb7 {[%clk 0:01:22.3]} 22. Ba5
{[%clk 0:01:16.1]} 22... Qg5 {[%clk 0:01:12.9]} 23. Rxb5 {[%clk 0:01:13]} 23...
Bc6 {[%clk 0:01:07.1]} 24. Rb6 {[%clk 0:01:09.5]} 24... Bxd5 {[%clk 0:00:50.8]}
25. Bxd5 {[%clk 0:01:08]} 25... e4 {[%clk 0:00:51.4]} 26. Qa2 {[%clk 0:01:07.2]}
26... exd3 {[%clk 0:00:45.6]} 27. Bxe6 {[%clk 0:01:05.1]} 27... fxe6 {[%clk
0:00:45.2]} 28. Rxd6 {[%clk 0:01:04.5]} 28... Ra8 {[%clk 0:00:42.8]} 29. Qxe6
{[%clk 0:00:48.8]} 29... Rxa5 {[%clk 0:00:40.5]} 30. Rxd3 {[%clk 0:00:49.3]}
30... Raf5 {[%clk 0:00:39.4]} 31. h3 {[%clk 0:00:39.5]} 31... Qh5 {[%clk
0:00:36.4]} 32. g4 {[%clk 0:00:22]} 32... Rg5 {[%clk 0:00:35.2]} 33. Kg2 {[%clk
0:00:20.1]} 33... Qh4 {[%clk 0:00:33.4]} 34. f4 {[%clk 0:00:18.9]} 34... Rb5
{[%clk 0:00:30.4]} 35. Rf2 {[%clk 0:00:17.7]} 35... Rb1 {[%clk 0:00:28.6]} 36.
Rd7 {[%clk 0:00:16.7]} 36... Qf6 {[%clk 0:00:28]} 37. Qxf6 {[%clk 0:00:15.2]}
37... Bxf6 {[%clk 0:00:28.9]} 38. e4 {[%clk 0:00:13.7]} 38... Bh4 {[%clk
0:00:26.6]} 39. Re2 {[%clk 0:00:06.9]} 39... Rxf4 {[%clk 0:00:25.2]} 40. e5
{[%clk 0:00:07.4]} 40... Rf8 {[%clk 0:00:23.2]} 41. e6 {[%clk 0:00:07.9]} 41...
Re8 {[%clk 0:00:23.6]} 42. Kf3 {[%clk 0:00:06]} 42... Kg8 {[%clk 0:00:23.4]} 43.
Re5 {[%clk 0:00:02.2]} 43... Rb3+ {[%clk 0:00:23]} 44. Ke4 {[%clk 0:00:02.4]}
44... Bf6 {[%clk 0:00:22.9]} 0-1

[Event "*** Titled Tuesday Blitz"]
[Site "Chess.com"]
[Date "2021.02.02"]
[Round "3"]
[White "Naaas1"]
[Black "erdni1993"]
[Result "1-0"]
[WhiteElo "2756"]
[BlackElo "2447"]
[TimeControl "180+1"]
[EndTime "10:31:34 PST"]
[Termination "Naaas1 won by resignation"]

1. d4 {[%clk 0:02:52.7]} 1... Nf6 {[%clk 0:02:56.5]} 2. c4 {[%clk 0:02:53.6]}
2... e6 {[%clk 0:02:56.3]} 3. g3 {[%clk 0:02:53.8]} 3... c5 {[%clk 0:02:55.7]}
4. Nf3 {[%clk 0:02:52.6]} 4... cxd4 {[%clk 0:02:52.2]} 5. Nxd4 {[%clk
0:02:53.5]} 5... Bb4+ {[%clk 0:02:51.6]} 6. Bd2 {[%clk 0:02:52.5]} 6... Qb6
{[%clk 0:02:43.6]} 7. Nb3 {[%clk 0:02:27.7]} 7... Ne4 {[%clk 0:02:40.9]} 8. e3
{[%clk 0:02:23.9]} 8... Nxd2 {[%clk 0:02:23.3]} 9. N1xd2 {[%clk 0:02:24.8]} 9...
Nc6 {[%clk 0:02:13.4]} 10. Bg2 {[%clk 0:02:20.5]} 10... O-O {[%clk 0:02:08.3]}
11. O-O {[%clk 0:02:19.8]} 11... d5 {[%clk 0:02:04]} 12. cxd5 {[%clk 0:02:16.9]}
12... exd5 {[%clk 0:02:03.7]} 13. Nf3 {[%clk 0:02:13.1]} 13... Be6 {[%clk
0:01:58.1]} 14. Nfd4 {[%clk 0:02:01.6]} 14... Nxd4 {[%clk 0:01:56.5]} 15. Qxd4
{[%clk 0:01:58.8]} 15... Rfc8 {[%clk 0:01:46]} 16. a3 {[%clk 0:01:40.1]} 16...
Be7 {[%clk 0:01:34.5]} 17. Qxb6 {[%clk 0:01:38.4]} 17... axb6 {[%clk 0:01:34.6]}
18. Nd4 {[%clk 0:01:39.3]} 18... Bf6 {[%clk 0:01:31.3]} 19. Rfd1 {[%clk
0:01:39.2]} 19... Rc5 {[%clk 0:01:22.9]} 20. Rd2 {[%clk 0:01:37.4]} 20... Rac8
{[%clk 0:01:22.4]} 21. Rad1 {[%clk 0:01:37.1]} 21... Rc1 {[%clk 0:01:17.8]} 22.
h3 {[%clk 0:01:30.8]} 22... h5 {[%clk 0:01:10.5]} 23. Bf3 {[%clk 0:01:21.3]}
23... g6 {[%clk 0:01:06.9]} 24. Kg2 {[%clk 0:01:20.9]} 24... Bxd4 {[%clk
0:00:57.8]} 25. Rxd4 {[%clk 0:01:20.2]} 25... Rxd1 {[%clk 0:00:57.5]} 26. Bxd1
{[%clk 0:01:15.5]} 26... Bf5 {[%clk 0:00:54.9]} 27. Bf3 {[%clk 0:01:10.1]} 27...
Rc2 {[%clk 0:00:50]} 28. Rb4 {[%clk 0:01:09.7]} 28... Rc6 {[%clk 0:00:17.9]} 29.
Bxd5 {[%clk 0:01:07.5]} 29... Rd6 {[%clk 0:00:18.3]} 30. Bxb7 {[%clk 0:01:06.2]}
30... Kf8 {[%clk 0:00:18.4]} 31. g4 {[%clk 0:01:01.4]} 31... hxg4 {[%clk
0:00:17.9]} 32. hxg4 {[%clk 0:01:02.3]} 32... Be6 {[%clk 0:00:17.7]} 33. g5
{[%clk 0:01:02.8]} 33... Ke7 {[%clk 0:00:17.3]} 34. f4 {[%clk 0:00:58.6]} 34...
Kd8 {[%clk 0:00:16]} 35. Kf3 {[%clk 0:00:57.3]} 35... Kc7 {[%clk 0:00:16.2]} 36.
Be4 {[%clk 0:00:57.1]} 36... Rd2 {[%clk 0:00:16]} 37. b3 {[%clk 0:00:14.3]}
37... Rb2 {[%clk 0:00:14.8]} 38. Rb5 {[%clk 0:00:13.6]} 38... Bxb3 {[%clk
0:00:09.8]} 39. Kg3 {[%clk 0:00:13.9]} 39... Kd6 {[%clk 0:00:08.6]} 40. Bd5
{[%clk 0:00:13.1]} 40... Re2 {[%clk 0:00:06.7]} 41. Rxb3 {[%clk 0:00:09.4]}
41... Rxe3+ {[%clk 0:00:07.6]} 42. Rxe3 {[%clk 0:00:07.6]} 42... Kxd5 {[%clk
0:00:08.2]} 43. Re7 {[%clk 0:00:08.1]} 1-0